[Event "Titled Tuesday Blitz May 30 Late 2023"]
[White "Xiong, Jeffery"]
[Black "Sarana, Alexey"]
[WhiteFideId "2047640"]
[BlackFideId "24133795"]
[WhiteElo "2726"]
[BlackElo "2714"]
[Result "1/2-1/2"]
[Round "11"]
[TimeControl "180+2"]
[Date "2023.05.31"]
[WhiteClock "0:00:12"]
[BlackClock "0:00:01"]

1. e4 {[%clk 0:02:53]}  c5 {[%clk 0:03:00]} 2. Nc3 {[%clk 0:02:53]}  d6 {[%clk 0:03:00]} 3. d4 {[%clk 0:02:53]}  cxd4 {[%clk 0:03:01]} 4. Qxd4 {[%clk 0:02:54]}  Nf6 {[%clk 0:02:59]} 5. Nf3 {[%clk 0:02:45]}  Nc6 {[%clk 0:02:53]} 6. Qd3 {[%clk 0:02:46]}  Bg4 {[%clk 0:02:51]} 7. Be2 {[%clk 0:02:45]}  e6 {[%clk 0:02:51]} 8. Bf4 {[%clk 0:02:44]}  Qb6 {[%clk 0:02:46]} 9. O-O-O {[%clk 0:02:38]}  Rd8 {[%clk 0:02:45]} 10. Be3 {[%clk 0:02:31]}  Qa5 {[%clk 0:02:44]} 11. Nd4 {[%clk 0:02:30]}  Bxe2 {[%clk 0:02:40]} 12. Qxe2 {[%clk 0:02:29]}  Be7 {[%clk 0:02:39]} 13. f4 {[%clk 0:02:24]}  O-O {[%clk 0:02:37]} 14. Nb3 {[%clk 0:02:24]}  Qc7 {[%clk 0:02:35]} 15. g4 {[%clk 0:02:24]}  Nd7 {[%clk 0:02:31]} 16. g5 {[%clk 0:02:23]}  a6 {[%clk 0:02:18]} 17. h4 {[%clk 0:02:23]}  Nc5 {[%clk 0:02:06]} 18. h5 {[%clk 0:02:18]}  Nxb3+ {[%clk 0:02:05]} 19. axb3 {[%clk 0:02:18]}  Qa5 {[%clk 0:02:01]} 20. Kb1 {[%clk 0:02:17]}  Nb4 {[%clk 0:02:00]} 21. g6 {[%clk 0:02:01]}  h6 {[%clk 0:01:58]} 22. gxf7+ {[%clk 0:01:45]}  Rxf7 {[%clk 0:01:57]} 23. Qg4 {[%clk 0:01:46]}  Rc8 {[%clk 0:01:13]} 24. Bd4 {[%clk 0:01:40]}  Bf6 {[%clk 0:00:53]} 25. Qxe6 {[%clk 0:01:40]}  Rxc3 {[%clk 0:00:41]} 26. Bxc3 {[%clk 0:01:41]}  Bxc3 {[%clk 0:00:40]} 27. Qc8+ {[%clk 0:01:41]}  Kh7 {[%clk 0:00:40]} 28. Qxc3 {[%clk 0:01:42]}  Rc7 {[%clk 0:00:37]} 29. Rh2 {[%clk 0:01:11]}  Rxc3 {[%clk 0:00:35]} 30. bxc3 {[%clk 0:01:12]}  Nc6 {[%clk 0:00:36]} 31. Kb2 {[%clk 0:01:12]}  Qc7 {[%clk 0:00:33]} 32. Rhd2 {[%clk 0:01:12]}  Qe7 {[%clk 0:00:33]} 33. Rxd6 {[%clk 0:01:10]}  Qxe4 {[%clk 0:00:33]} 34. Rg6 {[%clk 0:01:10]}  Qe7 {[%clk 0:00:32]} 35. f5 {[%clk 0:01:02]}  a5 {[%clk 0:00:31]} 36. Rf1 {[%clk 0:00:55]}  Ne5 {[%clk 0:00:15]} 37. Re6 {[%clk 0:00:55]}  Qc5 {[%clk 0:00:09]} 38. f6 {[%clk 0:00:55]}  gxf6 {[%clk 0:00:08]} 39. Rfxf6 {[%clk 0:00:56]}  a4 {[%clk 0:00:08]} 40. Rxh6+ {[%clk 0:00:42]}  Kg7 {[%clk 0:00:08]} 41. bxa4 {[%clk 0:00:43]}  Nc4+ {[%clk 0:00:08]} 42. Kb3 {[%clk 0:00:43]}  Na5+ {[%clk 0:00:07]} 43. Kb2 {[%clk 0:00:44]}  Nc4+ {[%clk 0:00:07]} 44. Kb3 {[%clk 0:00:44]}  Na5+ {[%clk 0:00:02]} 45. Kb2 {[%clk 0:00:45]}  Qf2 {[%clk 0:00:01]} 46. Rhg6+ {[%clk 0:00:44]}  Kh7 {[%clk 0:00:01]} 47. Ref6 {[%clk 0:00:43]}  Qe3 {[%clk 0:00:01]} 48. Rf7+ {[%clk 0:00:43]}  Kh8 {[%clk 0:00:01]} 49. Rc7 {[%clk 0:00:42]}  Qf4 {[%clk 0:00:01]} 50. Rgg7 {[%clk 0:00:31]}  Nc4+ {[%clk 0:00:01]} 51. Kb3 {[%clk 0:00:31]}  Na5+ {[%clk 0:00:01]} 52. Ka3 {[%clk 0:00:31]}  Nc4+ {[%clk 0:00:02]} 53. Kb3 {[%clk 0:00:30]}  Nd2+ {[%clk 0:00:02]} 54. Kb2 {[%clk 0:00:24]}  Qxa4 {[%clk 0:00:02]} 55. Rh7+ {[%clk 0:00:16]}  Kg8 {[%clk 0:00:02]} 56. Rhg7+ {[%clk 0:00:17]}  Kf8 {[%clk 0:00:03]} 57. Rgf7+ {[%clk 0:00:17]}  Ke8 {[%clk 0:00:03]} 58. Rfe7+ {[%clk 0:00:18]}  Kf8 {[%clk 0:00:01]} 59. Rf7+ {[%clk 0:00:19]}  Kg8 {[%clk 0:00:02]} 60. Rg7+ {[%clk 0:00:19]}  Kf8 {[%clk 0:00:02]} 61. Rcf7+ {[%clk 0:00:18]}  Ke8 {[%clk 0:00:03]} 62. Re7+ {[%clk 0:00:19]}  Kd8 {[%clk 0:00:03]} 63. Rd7+ {[%clk 0:00:19]}  Qxd7 {[%clk 0:00:04]} 64. Rxd7+ {[%clk 0:00:20]}  Kxd7 {[%clk 0:00:05]} 65. h6 {[%clk 0:00:20]}  Nc4+ {[%clk 0:00:06]} 66. Kb3 {[%clk 0:00:20]}  Ne5 {[%clk 0:00:06]} 67. h7 {[%clk 0:00:21]}  Nf7 {[%clk 0:00:07]} 68. Kb4 {[%clk 0:00:16]}  Kc6 {[%clk 0:00:07]} 69. c4 {[%clk 0:00:17]}  b6 {[%clk 0:00:07]} 70. Kb3 {[%clk 0:00:17]}  Kc5 {[%clk 0:00:07]} 71. Kc3 {[%clk 0:00:18]}  Nh8 {[%clk 0:00:07]} 72. Kb3 {[%clk 0:00:18]}  Ng6 {[%clk 0:00:07]} 73. Kc3 {[%clk 0:00:19]}  Nh8 {[%clk 0:00:08]} 74. Kd3 {[%clk 0:00:19]}  Nf7 {[%clk 0:00:08]} 75. Kc3 {[%clk 0:00:18]}  Kd6 {[%clk 0:00:04]} 76. Kd4 {[%clk 0:00:18]}  Kc6 {[%clk 0:00:04]} 77. Kd3 {[%clk 0:00:16]}  Kc7 {[%clk 0:00:03]} 78. Ke3 {[%clk 0:00:16]}  Kd6 {[%clk 0:00:03]} 79. Kd4 {[%clk 0:00:15]}  Kc6 {[%clk 0:00:01]} 80. Kd3 {[%clk 0:00:11]}  Kd6 {[%clk 0:00:01]} 81. Kd4 {[%clk 0:00:12]} 1/2-1/2


[Site "https://www.chess.com"]

[Event "Titled Tuesday Blitz May 30 Late 2023"]
[White "Pranav, V"]
[Black "Kamsky, Gata"]
[WhiteFideId "25060783"]
[BlackFideId "2000024"]
[WhiteElo "2515"]
[BlackElo "2660"]
[Result "1-0"]
[Round "11"]
[TimeControl "180+2"]
[Date "2023.05.31"]
[WhiteClock "0:00:04"]
[BlackClock "0:00:02"]

1. e4 {[%clk 0:03:00]}  e5 {[%clk 0:02:59]} 2. Nf3 {[%clk 0:03:01]}  Nc6 {[%clk 0:02:59]} 3. Bb5 {[%clk 0:03:01]}  a6 {[%clk 0:02:58]} 4. Ba4 {[%clk 0:03:02]}  Nf6 {[%clk 0:02:59]} 5. O-O {[%clk 0:03:02]}  Be7 {[%clk 0:02:59]} 6. d3 {[%clk 0:03:03]}  b5 {[%clk 0:02:53]} 7. Bb3 {[%clk 0:03:03]}  d6 {[%clk 0:02:53]} 8. c3 {[%clk 0:03:01]}  O-O {[%clk 0:02:51]} 9. a4 {[%clk 0:03:01]}  Bb7 {[%clk 0:02:33]} 10. Nbd2 {[%clk 0:03:01]}  Na5 {[%clk 0:02:29]} 11. Bc2 {[%clk 0:03:01]}  c5 {[%clk 0:02:29]} 12. Re1 {[%clk 0:03:01]}  Re8 {[%clk 0:02:23]} 13. Nf1 {[%clk 0:03:01]}  h6 {[%clk 0:02:15]} 14. Ng3 {[%clk 0:03:00]}  Bf8 {[%clk 0:02:14]} 15. Nf5 {[%clk 0:02:59]}  c4 {[%clk 0:02:13]} 16. h3 {[%clk 0:02:54]}  d5 {[%clk 0:02:11]} 17. axb5 {[%clk 0:02:25]}  axb5 {[%clk 0:02:08]} 18. exd5 {[%clk 0:02:23]}  Qxd5 {[%clk 0:01:42]} 19. dxc4 {[%clk 0:01:47]}  Nxc4 {[%clk 0:01:35]} 20. Rxa8 {[%clk 0:01:43]}  Bxa8 {[%clk 0:01:35]} 21. b3 {[%clk 0:01:20]}  Nb6 {[%clk 0:01:16]} 22. Qe2 {[%clk 0:01:11]}  e4 {[%clk 0:01:15]} 23. N3d4 {[%clk 0:01:11]}  Qc5 {[%clk 0:00:49]} 24. Bd2 {[%clk 0:01:00]}  g6 {[%clk 0:00:39]} 25. Nxh6+ {[%clk 0:00:49]}  Bxh6 {[%clk 0:00:39]} 26. Bxh6 {[%clk 0:00:50]}  Nbd5 {[%clk 0:00:26]} 27. Nxb5 {[%clk 0:00:44]}  Bc6 {[%clk 0:00:25]} 28. c4 {[%clk 0:00:35]}  Bxb5 {[%clk 0:00:22]} 29. cxb5 {[%clk 0:00:36]}  e3 {[%clk 0:00:21]} 30. fxe3 {[%clk 0:00:12]}  Kh7 {[%clk 0:00:19]} 31. Bg5 {[%clk 0:00:12]}  Nc3 {[%clk 0:00:19]} 32. Qd3 {[%clk 0:00:08]}  Qxg5 {[%clk 0:00:19]} 33. Qxc3 {[%clk 0:00:08]}  Nd5 {[%clk 0:00:16]} 34. Qd2 {[%clk 0:00:06]}  Nxe3 {[%clk 0:00:14]} 35. b6 {[%clk 0:00:04]}  Qc5 {[%clk 0:00:02]} 36. Qf2 {[%clk 0:00:04]} 1-0


[Site "https://www.chess.com"]

[Event "Titled Tuesday Blitz May 30 Late 2023"]
[White "Durarbayli, Vasif"]
[Black "Makarian, Rudik"]
[WhiteFideId "13402935"]
[BlackFideId "44105681"]
[WhiteElo "2551"]
[BlackElo "2461"]
[Result "1-0"]
[Round "11"]
[TimeControl "180+2"]
[Date "2023.05.31"]
[WhiteClock "0:00:08"]
[BlackClock "0:00:03"]

1. e4 {[%clk 0:03:00]}  c5 {[%clk 0:02:58]} 2. Nf3 {[%clk 0:03:01]}  Nc6 {[%clk 0:02:59]} 3. d4 {[%clk 0:03:01]}  cxd4 {[%clk 0:02:59]} 4. Nxd4 {[%clk 0:03:02]}  e6 {[%clk 0:03:00]} 5. Nc3 {[%clk 0:03:02]}  a6 {[%clk 0:03:00]} 6. g3 {[%clk 0:02:59]}  Qc7 {[%clk 0:03:00]} 7. Bg2 {[%clk 0:02:59]}  Nf6 {[%clk 0:02:59]} 8. O-O {[%clk 0:02:59]}  Nxd4 {[%clk 0:03:00]} 9. Qxd4 {[%clk 0:02:59]}  Bc5 {[%clk 0:03:00]} 10. Qd3 {[%clk 0:02:52]}  Ng4 {[%clk 0:02:58]} 11. Qe2 {[%clk 0:02:41]}  h5 {[%clk 0:02:56]} 12. Bf4 {[%clk 0:02:35]}  Ne5 {[%clk 0:02:53]} 13. Kh1 {[%clk 0:02:28]}  d6 {[%clk 0:02:48]} 14. h3 {[%clk 0:02:26]}  b5 {[%clk 0:02:45]} 15. a4 {[%clk 0:01:55]}  b4 {[%clk 0:02:44]} 16. Na2 {[%clk 0:01:55]}  a5 {[%clk 0:02:42]} 17. c4 {[%clk 0:01:51]}  Bb7 {[%clk 0:02:11]} 18. Rad1 {[%clk 0:01:43]}  O-O-O {[%clk 0:01:59]} 19. Nc1 {[%clk 0:01:43]}  Bc6 {[%clk 0:01:57]} 20. b3 {[%clk 0:01:32]}  f6 {[%clk 0:01:52]} 21. Nd3 {[%clk 0:01:30]}  Nxd3 {[%clk 0:01:51]} 22. Rxd3 {[%clk 0:01:26]}  g5 {[%clk 0:01:45]} 23. Be3 {[%clk 0:01:25]}  g4 {[%clk 0:01:24]} 24. Bxc5 {[%clk 0:01:11]}  dxc5 {[%clk 0:01:24]} 25. Rxd8+ {[%clk 0:01:12]}  Qxd8 {[%clk 0:01:06]} 26. Rd1 {[%clk 0:01:12]}  Qc7 {[%clk 0:01:07]} 27. Kg1 {[%clk 0:01:04]}  Qe5 {[%clk 0:01:02]} 28. hxg4 {[%clk 0:01:00]}  h4 {[%clk 0:01:03]} 29. f4 {[%clk 0:00:55]}  Qc3 {[%clk 0:01:01]} 30. Rd3 {[%clk 0:00:47]}  Qc1+ {[%clk 0:00:56]} 31. Qd1 {[%clk 0:00:37]}  Qxd1+ {[%clk 0:00:51]} 32. Rxd1 {[%clk 0:00:37]}  hxg3 {[%clk 0:00:50]} 33. Rd3 {[%clk 0:00:37]}  Rd8 {[%clk 0:00:38]} 34. Rxd8+ {[%clk 0:00:22]}  Kxd8 {[%clk 0:00:38]} 35. e5 {[%clk 0:00:23]}  fxe5 {[%clk 0:00:27]} 36. Bxc6 {[%clk 0:00:19]}  exf4 {[%clk 0:00:27]} 37. Kf1 {[%clk 0:00:16]}  Ke7 {[%clk 0:00:25]} 38. Ke2 {[%clk 0:00:15]}  Kf6 {[%clk 0:00:23]} 39. Kd3 {[%clk 0:00:15]}  Kg5 {[%clk 0:00:20]} 40. Bf3 {[%clk 0:00:15]}  g2 {[%clk 0:00:03]} 41. Bxg2 {[%clk 0:00:15]}  Kxg4 {[%clk 0:00:04]} 42. Ke4 {[%clk 0:00:15]}  Kg3 {[%clk 0:00:03]} 43. Bf3 {[%clk 0:00:16]}  Kf2 {[%clk 0:00:01]} 44. Kxf4 {[%clk 0:00:13]}  Ke1 {[%clk 0:00:01]} 45. Ke3 {[%clk 0:00:13]}  e5 {[%clk 0:00:02]} 46. Bg4 {[%clk 0:00:11]}  e4 {[%clk 0:00:01]} 47. Bh5 {[%clk 0:00:11]}  Kf1 {[%clk 0:00:01]} 48. Bd1 {[%clk 0:00:12]}  Ke1 {[%clk 0:00:02]} 49. Bc2 {[%clk 0:00:12]}  Kf1 {[%clk 0:00:02]} 50. Bxe4 {[%clk 0:00:12]}  Ke1 {[%clk 0:00:02]} 51. Bc2 {[%clk 0:00:13]}  Kf1 {[%clk 0:00:03]} 52. Bd1 {[%clk 0:00:13]}  Ke1 {[%clk 0:00:03]} 53. Bh5 {[%clk 0:00:13]}  Kf1 {[%clk 0:00:04]} 54. Ke4 {[%clk 0:00:10]}  Ke1 {[%clk 0:00:05]} 55. Kd5 {[%clk 0:00:11]}  Kd2 {[%clk 0:00:05]} 56. Kxc5 {[%clk 0:00:11]}  Kc2 {[%clk 0:00:06]} 57. Kb5 {[%clk 0:00:11]}  Kxb3 {[%clk 0:00:06]} 58. c5 {[%clk 0:00:11]}  Ka3 {[%clk 0:00:03]} 59. Bf7 {[%clk 0:00:12]}  Kb2 {[%clk 0:00:02]} 60. c6 {[%clk 0:00:12]}  Ka3 {[%clk 0:00:03]} 61. c7 {[%clk 0:00:12]}  Kb2 {[%clk 0:00:03]} 62. c8=Q {[%clk 0:00:12]}  b3 {[%clk 0:00:03]} 63. Bxb3 {[%clk 0:00:09]}  Ka3 {[%clk 0:00:03]} 64. Bg8 {[%clk 0:00:08]}  Kb2 {[%clk 0:00:03]} 65. Kxa5 {[%clk 0:00:08]} 1-0


[Site "https://www.chess.com"]

[Event "Titled Tuesday Blitz May 30 Late 2023"]
[White "Maksimovic, Bojan"]
[Black "Kushko, Dmitriy"]
[WhiteFideId "14408120"]
[BlackFideId "14162261"]
[WhiteElo "2468"]
[BlackElo "2230"]
[Result "1-0"]
[Round "11"]
[TimeControl "180+2"]
[Date "2023.05.31"]
[WhiteClock "0:00:26"]
[BlackClock "0:00:02"]

1. Nf3 {[%clk 0:03:00]}  g6 {[%clk 0:02:59]} 2. g3 {[%clk 0:03:01]}  Bg7 {[%clk 0:03:00]} 3. Bg2 {[%clk 0:03:02]}  Nf6 {[%clk 0:03:00]} 4. O-O {[%clk 0:03:02]}  O-O {[%clk 0:03:00]} 5. d3 {[%clk 0:03:03]}  d6 {[%clk 0:02:57]} 6. Nbd2 {[%clk 0:03:03]}  e5 {[%clk 0:02:56]} 7. e4 {[%clk 0:03:03]}  Nc6 {[%clk 0:02:54]} 8. c3 {[%clk 0:03:04]}  a5 {[%clk 0:02:53]} 9. b3 {[%clk 0:03:04]}  d5 {[%clk 0:02:36]} 10. Qc2 {[%clk 0:03:03]}  h6 {[%clk 0:02:35]} 11. a3 {[%clk 0:03:03]}  Be6 {[%clk 0:02:34]} 12. Bb2 {[%clk 0:03:03]}  dxe4 {[%clk 0:02:27]} 13. dxe4 {[%clk 0:03:04]}  Nd7 {[%clk 0:02:23]} 14. Rfd1 {[%clk 0:03:01]}  Qe7 {[%clk 0:02:21]} 15. b4 {[%clk 0:03:01]}  Nb6 {[%clk 0:02:12]} 16. Nb3 {[%clk 0:02:42]}  Nc4 {[%clk 0:02:06]} 17. Nc5 {[%clk 0:02:41]}  Bc8 {[%clk 0:02:03]} 18. Bf1 {[%clk 0:02:27]}  Nxb2 {[%clk 0:02:00]} 19. Qxb2 {[%clk 0:02:27]}  b6 {[%clk 0:01:59]} 20. Nb3 {[%clk 0:02:24]}  Bg4 {[%clk 0:01:55]} 21. Nbd2 {[%clk 0:02:24]}  Rfd8 {[%clk 0:01:47]} 22. h3 {[%clk 0:02:23]}  Be6 {[%clk 0:01:36]} 23. Kg2 {[%clk 0:02:13]}  Qd7 {[%clk 0:01:16]} 24. Bb5 {[%clk 0:02:06]}  Bxh3+ {[%clk 0:01:03]} 25. Kh2 {[%clk 0:02:06]}  Bg4 {[%clk 0:01:04]} 26. Nf1 {[%clk 0:01:29]}  Qe6 {[%clk 0:01:02]} 27. Be2 {[%clk 0:01:30]}  Qf6 {[%clk 0:01:00]} 28. Kg2 {[%clk 0:01:30]}  Ne7 {[%clk 0:00:48]} 29. Ne3 {[%clk 0:01:28]}  Be6 {[%clk 0:00:48]} 30. Bc4 {[%clk 0:01:28]}  Bxc4 {[%clk 0:00:39]} 31. Nxc4 {[%clk 0:01:29]}  Qe6 {[%clk 0:00:39]} 32. Ne3 {[%clk 0:01:28]}  h5 {[%clk 0:00:35]} 33. c4 {[%clk 0:01:21]}  axb4 {[%clk 0:00:25]} 34. axb4 {[%clk 0:01:18]}  c6 {[%clk 0:00:26]} 35. Rxa8 {[%clk 0:01:12]}  Rxa8 {[%clk 0:00:25]} 36. c5 {[%clk 0:01:09]}  bxc5 {[%clk 0:00:24]} 37. bxc5 {[%clk 0:01:10]}  f6 {[%clk 0:00:11]} 38. Qb7 {[%clk 0:01:09]}  Re8 {[%clk 0:00:08]} 39. Rd6 {[%clk 0:01:06]}  Qc8 {[%clk 0:00:08]} 40. Qb3+ {[%clk 0:01:01]}  Kf8 {[%clk 0:00:08]} 41. Nh4 {[%clk 0:00:59]}  Qb8 {[%clk 0:00:07]} 42. Qa2 {[%clk 0:00:52]}  Qa8 {[%clk 0:00:04]} 43. Qc4 {[%clk 0:00:53]}  Qc8 {[%clk 0:00:02]} 44. Qa2 {[%clk 0:00:29]}  Rd8 {[%clk 0:00:03]} 45. Nc4 {[%clk 0:00:26]}  Re8 {[%clk 0:00:03]} 46. Nb6 {[%clk 0:00:25]}  Qb7 {[%clk 0:00:02]} 47. Nd7+ {[%clk 0:00:26]} 1-0


[Site "https://www.chess.com"]

[Event "Titled Tuesday Blitz May 30 Late 2023"]
[White "Martic, Ivan"]
[Black "Halkias, Stelios"]
[WhiteFideId "929301"]
[BlackFideId "4201809"]
[WhiteElo "2360"]
[BlackElo "2451"]
[Result "0-1"]
[Round "11"]
[TimeControl "180+2"]
[Date "2023.05.31"]
[WhiteClock "0:00:03"]
[BlackClock "0:00:03"]

1. e4 {[%clk 0:03:00]}  e5 {[%clk 0:02:53]} 2. Nf3 {[%clk 0:03:01]}  d6 {[%clk 0:02:52]} 3. d4 {[%clk 0:02:59]}  exd4 {[%clk 0:02:52]} 4. Nxd4 {[%clk 0:03:00]}  Nf6 {[%clk 0:02:53]} 5. Nc3 {[%clk 0:03:00]}  Be7 {[%clk 0:02:53]} 6. Bf4 {[%clk 0:03:01]}  O-O {[%clk 0:02:54]} 7. Qd2 {[%clk 0:03:01]}  Re8 {[%clk 0:02:53]} 8. O-O-O {[%clk 0:03:01]}  c6 {[%clk 0:02:53]} 9. f3 {[%clk 0:03:00]}  b5 {[%clk 0:02:53]} 10. g4 {[%clk 0:02:59]}  b4 {[%clk 0:02:53]} 11. Nce2 {[%clk 0:02:58]}  c5 {[%clk 0:02:53]} 12. Nf5 {[%clk 0:02:57]}  Bxf5 {[%clk 0:02:52]} 13. gxf5 {[%clk 0:02:58]}  Qa5 {[%clk 0:02:52]} 14. Kb1 {[%clk 0:02:56]}  Nc6 {[%clk 0:02:51]} 15. Rg1 {[%clk 0:02:54]}  Kh8 {[%clk 0:02:45]} 16. Nc1 {[%clk 0:02:32]}  Rad8 {[%clk 0:02:32]} 17. Bc4 {[%clk 0:02:28]}  d5 {[%clk 0:02:19]} 18. exd5 {[%clk 0:02:21]}  Nd4 {[%clk 0:02:19]} 19. Qg2 {[%clk 0:02:20]}  Rg8 {[%clk 0:02:08]} 20. d6 {[%clk 0:02:16]}  Bxd6 {[%clk 0:01:46]} 21. Bxd6 {[%clk 0:02:14]}  Rxd6 {[%clk 0:01:47]} 22. Bxf7 {[%clk 0:02:12]}  Qd8 {[%clk 0:01:47]} 23. Bxg8 {[%clk 0:02:10]}  Qxg8 {[%clk 0:01:47]} 24. Ne2 {[%clk 0:02:02]}  Ra6 {[%clk 0:01:45]} 25. Nxd4 {[%clk 0:01:54]}  cxd4 {[%clk 0:01:41]} 26. Rxd4 {[%clk 0:01:51]}  Qxa2+ {[%clk 0:01:26]} 27. Kc1 {[%clk 0:01:50]}  Qf7 {[%clk 0:01:26]} 28. Rd8+ {[%clk 0:01:42]}  Ng8 {[%clk 0:01:26]} 29. Kd2 {[%clk 0:01:05]}  Qc7 {[%clk 0:01:22]} 30. Rd4 {[%clk 0:00:43]}  Rc6 {[%clk 0:01:18]} 31. Kc1 {[%clk 0:00:42]}  b3 {[%clk 0:01:12]} 32. Rd2 {[%clk 0:00:30]}  Ra6 {[%clk 0:00:58]} 33. Kb1 {[%clk 0:00:25]}  Qf7 {[%clk 0:00:58]} 34. f6 {[%clk 0:00:18]}  Rxf6 {[%clk 0:00:19]} 35. cxb3 {[%clk 0:00:16]}  Rg6 {[%clk 0:00:20]} 36. Qf2 {[%clk 0:00:15]}  Qf5+ {[%clk 0:00:12]} 37. Rc2 {[%clk 0:00:15]}  Rxg1+ {[%clk 0:00:11]} 38. Qxg1 {[%clk 0:00:16]}  Qxf3 {[%clk 0:00:11]} 39. Qxa7 {[%clk 0:00:13]}  Qd1+ {[%clk 0:00:10]} 40. Rc1 {[%clk 0:00:12]}  Qxb3 {[%clk 0:00:10]} 41. Qd4 {[%clk 0:00:10]}  h6 {[%clk 0:00:09]} 42. Rc7 {[%clk 0:00:09]}  Nf6 {[%clk 0:00:09]} 43. Qd8+ {[%clk 0:00:07]}  Ng8 {[%clk 0:00:09]} 44. Qd4 {[%clk 0:00:06]}  Nf6 {[%clk 0:00:09]} 45. Rc3 {[%clk 0:00:06]}  Qe6 {[%clk 0:00:07]} 46. Qd3 {[%clk 0:00:05]}  Kg8 {[%clk 0:00:06]} 47. Rc2 {[%clk 0:00:04]}  Qe1+ {[%clk 0:00:04]} 48. Ka2 {[%clk 0:00:04]}  Qa5+ {[%clk 0:00:04]} 49. Qa3 {[%clk 0:00:03]}  Qf5 {[%clk 0:00:04]} 50. Qb3+ {[%clk 0:00:03]}  Kh7 {[%clk 0:00:03]} 51. Rc3 {[%clk 0:00:03]}  Ne4 {[%clk 0:00:03]} 0-1


[Site "https://www.chess.com"]

[Event "Titled Tuesday Blitz May 30 Late 2023"]
[White "Bortnyk, Olexandr"]
[Black "Korchmar, Vasiliy"]
[WhiteFideId "14120828"]
[BlackFideId "24131750"]
[WhiteElo "2734"]
[BlackElo "2370"]
[Result "1-0"]
[Round "11"]
[TimeControl "180+2"]
[Date "2023.05.31"]
[WhiteClock "0:01:30"]
[BlackClock "0:00:25"]

1. d4 {[%clk 0:03:00]}  d5 {[%clk 0:02:59]} 2. Nc3 {[%clk 0:02:50]}  Nf6 {[%clk 0:02:59]} 3. Bf4 {[%clk 0:02:49]}  a6 {[%clk 0:02:59]} 4. e3 {[%clk 0:02:50]}  b5 {[%clk 0:02:58]} 5. a3 {[%clk 0:02:48]}  Bb7 {[%clk 0:02:54]} 6. b4 {[%clk 0:02:47]}  e6 {[%clk 0:02:51]} 7. Nf3 {[%clk 0:02:46]}  Be7 {[%clk 0:02:49]} 8. Bd3 {[%clk 0:02:46]}  Nbd7 {[%clk 0:02:41]} 9. Ne5 {[%clk 0:02:45]}  Ne4 {[%clk 0:02:34]} 10. Bxe4 {[%clk 0:02:35]}  dxe4 {[%clk 0:02:34]} 11. Qg4 {[%clk 0:02:36]}  Bf6 {[%clk 0:02:16]} 12. h4 {[%clk 0:02:27]}  a5 {[%clk 0:02:03]} 13. Nxb5 {[%clk 0:02:20]}  Bxe5 {[%clk 0:01:52]} 14. Bxe5 {[%clk 0:02:13]}  Nxe5 {[%clk 0:01:48]} 15. dxe5 {[%clk 0:02:13]}  Ba6 {[%clk 0:01:17]} 16. Qxg7 {[%clk 0:02:08]}  Rf8 {[%clk 0:01:16]} 17. Rd1 {[%clk 0:01:34]}  Qe7 {[%clk 0:01:04]} 18. Nc3 {[%clk 0:01:34]}  axb4 {[%clk 0:01:02]} 19. Nxe4 {[%clk 0:01:33]}  f5 {[%clk 0:00:24]} 20. Nf6+ {[%clk 0:01:30]}  Rxf6 {[%clk 0:00:25]} 21. exf6 {[%clk 0:01:30]} 1-0


[Site "https://www.chess.com"]

[Event "Titled Tuesday Blitz May 30 Late 2023"]
[White "Lazavik, Denis"]
[Black "Bjelobrk, Igor"]
[WhiteFideId "13515110"]
[BlackFideId "4300726"]
[WhiteElo "2560"]
[BlackElo "2319"]
[Result "1-0"]
[Round "11"]
[TimeControl "180+2"]
[Date "2023.05.31"]
[WhiteClock "0:02:32"]
[BlackClock "0:00:05"]

1. d4 {[%clk 0:03:00]}  e6 {[%clk 0:02:58]} 2. c4 {[%clk 0:03:01]}  b6 {[%clk 0:02:53]} 3. e4 {[%clk 0:03:00]}  Bb7 {[%clk 0:02:47]} 4. Bd3 {[%clk 0:03:00]}  Bb4+ {[%clk 0:02:47]} 5. Kf1 {[%clk 0:03:00]}  d5 {[%clk 0:02:22]} 6. Qa4+ {[%clk 0:02:55]}  Nc6 {[%clk 0:02:21]} 7. cxd5 {[%clk 0:02:55]}  exd5 {[%clk 0:02:20]} 8. Bb5 {[%clk 0:02:55]}  Qd6 {[%clk 0:02:11]} 9. e5 {[%clk 0:02:52]}  Qg6 {[%clk 0:01:55]} 10. Qxb4 {[%clk 0:02:51]}  O-O-O {[%clk 0:01:37]} 11. Qc3 {[%clk 0:02:47]}  Nge7 {[%clk 0:01:33]} 12. Nf3 {[%clk 0:02:46]}  f6 {[%clk 0:01:27]} 13. Bf4 {[%clk 0:02:45]}  Rhf8 {[%clk 0:01:15]} 14. e6 {[%clk 0:02:43]}  Qf5 {[%clk 0:01:13]} 15. Bg3 {[%clk 0:02:43]}  Qxe6 {[%clk 0:01:13]} 16. Nbd2 {[%clk 0:02:43]}  Nf5 {[%clk 0:01:07]} 17. Re1 {[%clk 0:02:43]}  Qd7 {[%clk 0:01:07]} 18. Rc1 {[%clk 0:02:41]}  Nfe7 {[%clk 0:01:03]} 19. Ne1 {[%clk 0:02:41]}  f5 {[%clk 0:00:53]} 20. Nd3 {[%clk 0:02:39]}  f4 {[%clk 0:00:52]} 21. Bxf4 {[%clk 0:02:39]}  Qf5 {[%clk 0:00:47]} 22. Bg3 {[%clk 0:02:38]}  Rf6 {[%clk 0:00:44]} 23. Nb4 {[%clk 0:02:37]}  Rd7 {[%clk 0:00:39]} 24. Nf3 {[%clk 0:02:36]}  a5 {[%clk 0:00:29]} 25. Nxc6 {[%clk 0:02:35]}  Bxc6 {[%clk 0:00:29]} 26. Ba6+ {[%clk 0:02:35]}  Kb8 {[%clk 0:00:28]} 27. Ne5 {[%clk 0:02:35]}  Rdd6 {[%clk 0:00:26]} 28. Bd3 {[%clk 0:02:35]}  Qh5 {[%clk 0:00:23]} 29. Kg1 {[%clk 0:02:33]}  Nf5 {[%clk 0:00:20]} 30. Bxf5 {[%clk 0:02:32]}  Qxf5 {[%clk 0:00:20]} 31. h3 {[%clk 0:02:32]}  Kb7 {[%clk 0:00:10]} 32. Kh2 {[%clk 0:02:32]}  Rde6 {[%clk 0:00:10]} 33. Ng4 {[%clk 0:02:32]}  Rf8 {[%clk 0:00:06]} 34. Rhe1 {[%clk 0:02:32]}  Rg6 {[%clk 0:00:05]} 35. Ne5 {[%clk 0:02:32]} 1-0


[Site "https://www.chess.com"]

[Event "Titled Tuesday Blitz May 30 Late 2023"]
[White "Sun, Rick"]
[Black "Thorfinnsson, Bragi"]
[WhiteFideId "30909481"]
[BlackFideId "2300958"]
[WhiteElo "2169"]
[BlackElo "2322"]
[Result "1-0"]
[Round "11"]
[TimeControl "180+2"]
[Date "2023.05.31"]
[WhiteClock "0:00:45"]
[BlackClock "0:00:26"]

1. d4 {[%clk 0:03:00]}  Nf6 {[%clk 0:02:58]} 2. Nc3 {[%clk 0:03:01]}  d5 {[%clk 0:02:58]} 3. Bf4 {[%clk 0:03:01]}  a6 {[%clk 0:02:58]} 4. e3 {[%clk 0:03:01]}  e6 {[%clk 0:02:56]} 5. Nf3 {[%clk 0:03:01]}  c5 {[%clk 0:02:54]} 6. dxc5 {[%clk 0:03:01]}  Bxc5 {[%clk 0:02:54]} 7. Bd3 {[%clk 0:03:01]}  Nc6 {[%clk 0:02:54]} 8. O-O {[%clk 0:03:02]}  b5 {[%clk 0:02:43]} 9. e4 {[%clk 0:03:00]}  d4 {[%clk 0:02:28]} 10. e5 {[%clk 0:02:59]}  dxc3 {[%clk 0:02:13]} 11. exf6 {[%clk 0:02:58]}  cxb2 {[%clk 0:02:13]} 12. Rb1 {[%clk 0:02:42]}  gxf6 {[%clk 0:02:06]} 13. Qe2 {[%clk 0:02:36]}  Bb7 {[%clk 0:02:02]} 14. Rxb2 {[%clk 0:02:30]}  Nd4 {[%clk 0:01:54]} 15. Nxd4 {[%clk 0:02:22]}  Qxd4 {[%clk 0:01:55]} 16. Bxb5+ {[%clk 0:02:12]}  axb5 {[%clk 0:01:30]} 17. Qxb5+ {[%clk 0:02:11]}  Kf8 {[%clk 0:00:45]} 18. Be3 {[%clk 0:01:27]}  Qxe3 {[%clk 0:00:33]} 19. fxe3 {[%clk 0:01:25]}  Bxe3+ {[%clk 0:00:34]} 20. Kh1 {[%clk 0:01:25]}  Bd5 {[%clk 0:00:35]} 21. c4 {[%clk 0:01:14]}  Be4 {[%clk 0:00:30]} 22. Re1 {[%clk 0:00:51]}  Rd8 {[%clk 0:00:29]} 23. Qb4+ {[%clk 0:00:46]}  Kg7 {[%clk 0:00:26]} 24. Rxe3 {[%clk 0:00:45]} 1-0


[Site "https://www.chess.com"]